bitfinex-derivatives/quotes_ETHF0:USTF0_20260125
["timestamp","ask_amount","ask_price","bid_price","bid_amount"]
[1769374640455,0.17828,2807.7,2807.1,2.699]
[1769374645656,0.00390424,2808.2,2807.2,0.88816227]
[1769374648861,0.00390424,2808.2,2807.3,5.656]
[1769374649562,0.00390424,2808.2,2807.4,0.88816227]
[1769374651957,0.00390424,2808.2,2807.5,6.272]
[1769374654661,0.17829,2807.7,2806.8,0.00425133]
[1769374654853,0.17829,2807.7,2806.9,6.275]
[1769374655458,0.88816227,2808.0,2806.8,0.8924136]
[1769374655459,0.1783,2807.4,2807.0,2.712]
[1769374657167,0.1783,2807.4,2807.1,2.363]
[1769374657369,0.1783,2807.4,2807.1,2.08612301]
[1769374659067,0.17831,2807.3,2806.8,1.33e-06]
[1769374659261,0.88816227,2807.4,2806.4,2.09]
[1769374660265,0.88816227,2807.4,2806.4,2.09367221]
[1769374660582,0.17831,2807.2,2806.4,2.09367221]
[1769374667278,0.17831,2807.2,2806.4,0.00367221]
[1769374667576,0.17831,2807.2,2806.4,2.09467221]
[1769374671774,0.17832,2807.1,2806.4,0.00367221]
[1769374671973,0.17832,2807.1,2806.4,2.13767221]
[1769374677079,0.17832,2807.1,2806.4,2.72767221]
[1769374682378,0.17829,2807.7,2806.4,2.72767221]
[1769374683284,0.17829,2807.6,2806.5,6.297]
[1769374685277,0.17829,2807.6,2806.6,0.01206497]
[1769374686281,3.85061259,2808.0,2806.6,0.01206497]
[1769374686480,0.17832,2807.1,2806.4,3.56867221]
[1769374686677,0.00390424,2808.2,2806.7,0.88725857]
[1769374686880,0.17827,2808.0,2807.2,0.88725857]
[1769374687184,0.17827,2808.0,2807.3,2.091]
[1769374688775,0.00390424,2808.2,2807.3,2.97825857]
[1769374690279,0.00390424,2808.2,2807.3,0.88725857]
[1769374690479,0.00390424,2808.2,2807.4,2.091]
[1769374694284,0.17822,2808.7,2807.4,2.091]
[1769374695387,0.18082467,2808.7,2807.4,2.091]
[1769374698090,0.00260467,2808.7,2807.7,0.88725857]
[1769374700186,2.091,2810.0,2808.5,0.88725857]
[1769374700187,0.17816,2809.6,2808.5,0.88725857]
[1769374700388,0.17816,2809.6,2808.6,2.1]
[1769374701288,0.18219761,2809.6,2808.6,2.10434112]
[1769374702195,0.18219761,2809.6,2808.6,0.00434112]
[1769374702495,0.00403761,2809.6,2808.7,2.09]
[1769374705995,3.85574989,2810.7,2808.8,0.88725857]
[1769374707097,3.85969679,2810.7,2808.8,0.88725857]
[1769374707998,4.03778679,2810.7,2808.8,0.88725857]
[1769374708392,0.1820369,2810.7,2809.2,0.88725857]
[1769374709296,0.1820369,2810.7,2809.3,0.01208451]
[1769374710296,0.1820369,2810.7,2809.2,0.88725857]
[1769374710297,0.0039469,2810.7,2809.7,0.01208451]
[1769374710598,0.0039469,2810.7,2809.8,2.089]
[1769374710999,0.0039469,2810.7,2809.8,2.10108451]
[1769374711199,0.0039469,2810.7,2809.9,0.01208451]
[1769374711700,0.0039469,2810.7,2809.6,4.44925857]
[1769374711701,0.0039469,2810.7,2809.6,0.88725857]
[1769374711891,0.0039469,2810.7,2809.7,2.089]
[1769374712298,0.0039469,2810.7,2809.6,2.089]
[1769374712497,4.03363434,2811.3,2809.7,0.88725857]
[1769374713505,4.03761738,2811.3,2809.7,0.88725857]
[1769374715106,4.03259136,2811.2,2809.7,0.88725857]
[1769374715301,3.85452136,2810.8,2808.4,0.17824]
[1769374715507,3.85452136,2810.6,2808.7,2.089]
[1769374715707,3.85452136,2810.6,2809.0,0.88725857]
[1769374716309,0.00398304,2811.3,2809.4,0.88725857]
[1769374716310,0.17806,2811.2,2809.4,0.88725857]
[1769374716509,0.17807,2811.1,2809.4,0.88725857]
[1769374716800,0.17807,2811.0,2808.9,0.88725857]
[1769374717001,0.17808,2810.9,2808.9,0.88725857]
[1769374717205,0.17811,2810.4,2809.0,2.11206271]
[1769374717410,0.17811,2810.4,2809.0,5.67306271]
[1769374717708,0.17811,2810.4,2809.0,0.02306271]
[1769374717901,0.17811,2810.4,2809.1,2.089]
[1769374719600,0.17811,2810.4,2809.2,0.00578785]
[1769374721915,0.17811,2810.4,2809.2,2.09478785]
[1769374723013,3.85045466,2810.4,2808.9,0.88725857]
[1769374723314,4.02858466,2810.1,2808.8,0.00813338]
[1769374723514,0.17815,2809.8,2808.6,2.09334112]
[1769374723916,0.17815,2809.8,2808.6,0.00434112]
[1769374724108,4.01089847,2809.7,2808.6,0.00434112]
[1769374724919,4.71999704,2809.6,2808.6,0.00434112]
[1769374726722,0.17817,2809.4,2808.6,0.00434112]
[1769374727514,6.13255453,2810.0,2808.6,0.00434112]
[1769374727717,0.17814,2810.0,2808.6,0.03650934]
[1769374728220,2.29406729,2810.7,2808.9,0.03216822]
[1769374728514,3.85915443,2810.6,2809.1,0.03216822]
[1769374728720,0.17809,2810.7,2809.1,0.03216822]
[1769374728924,4.01654724,2810.5,2809.1,0.03216822]
[1769374729123,3.83843724,2810.3,2808.7,3.85616822]
[1769374729319,4.00046363,2810.2,2808.7,0.03216822]
[1769374729620,7.68425955,2810.1,2808.7,2.12116822]
[1769374729822,3.82233363,2810.1,2808.7,2.12116822]
[1769374737231,3.82233363,2810.1,2808.7,0.03216822]
[1769374737431,3.82233363,2810.1,2808.8,2.089]
[1769374739430,3.82233363,2810.1,2808.7,3.85616822]
[1769374739628,3.82233363,2810.1,2808.8,2.089]
[1769374742633,0.17813,2810.2,2808.9,0.04936201]
[1769374743539,4.00852377,2810.1,2808.7,3.824]
[1769374743741,4.00852377,2810.1,2808.8,2.089]
[1769374744635,4.00855377,2809.7,2808.6,0.00434112]
[1769374746236,3.82779617,2809.5,2807.8,7.84950298]
[1769374746436,3.82779617,2809.5,2807.7,0.05632772]
[1769374746437,3.82779617,2809.5,2807.9,2.244]
[1769374747238,0.17819,2809.2,2807.7,0.05632772]
[1769374747538,3.83782475,2809.1,2807.8,2.244]
[1769374749737,3.83782475,2809.1,2807.7,0.05917134]
[1769374749936,3.83782475,2809.1,2807.8,2.089]
[1769374750343,3.83782475,2809.1,2807.7,2.09184362]
[1769374750941,3.83782475,2809.1,2807.7,0.00284362]
[1769374752646,3.84567072,2808.9,2807.7,0.00284362]
[1769374756541,4.02388072,2808.9,2807.7,0.00284362]
[1769374758145,3.84481624,2808.7,2807.7,0.00284362]
[1769374758351,4.02303624,2808.7,2807.7,0.00284362]
[1769374759651,4.02303624,2808.7,2807.7,0.88917617]
[1769374759852,4.02181338,2809.1,2808.3,0.88633255]
[1769374761548,4.02181338,2809.1,2807.7,0.00284362]
[1769374762152,0.17819,2809.1,2807.8,0.00695443]
[1769374764351,0.00442266,2809.2,2807.8,0.00695443]
[1769374764551,0.00442266,2809.2,2808.0,0.01828687]
[1769374764858,0.17816,2809.7,2808.1,3.84228687]
[1769374765063,0.17816,2809.7,2808.2,0.01828687]
[1769374765251,0.17816,2809.7,2808.0,3.824]
[1769374765252,3.85747198,2810.4,2808.4,1.32905261]
[1769374765554,3.85747198,2810.0,2808.5,5.652]
[1769374766153,0.00374185,2810.4,2808.5,5.652]
[1769374766354,3.85747198,2810.3,2808.6,5.652]
[1769374767756,3.85747198,2810.3,2808.6,2.089]
[1769374767959,4.03559198,2810.3,2808.7,5.652]
[1769374768154,4.03559198,2810.3,2808.4,1.50728261]
[1769374768351,3.85747198,2809.8,2808.4,3.562]
[1769374768665,3.85747198,2809.8,2808.5,2.089]
[1769374771557,0.17814,2809.9,2808.5,2.089]
[1769374771760,0.00374185,2810.4,2808.5,2.089]
[1769374772165,0.17807,2811.1,2809.4,1.32905261]
[1769374772471,4.03554198,2811.1,2809.4,1.32905261]
[1769374772662,4.03554198,2811.1,2809.5,5.651]
[1769374773269,4.03959857,2811.1,2809.5,5.651]
[1769374776269,4.03625945,2811.1,2809.4,1.32905261]
[1769374776471,3.85413286,2810.9,2809.5,5.651]
[1769374777071,3.85413286,2810.9,2809.6,2.089]
[1769374777568,3.85413286,2810.7,2809.4,2.089]
[1769374780567,3.85413286,2810.5,2809.1,3.561]
[1769374780767,3.85413286,2810.5,2808.9,3.561]
[1769374780968,3.85413286,2810.3,2808.5,0.17823]
[1769374781174,3.85413286,2810.3,2808.8,2.089]
[1769374781466,4.03225286,2810.3,2808.8,2.089]
[1769374786676,4.03225286,2810.3,2808.4,1.32905261]
[1769374786871,4.03225286,2810.3,2808.5,5.65]
[1769374790582,4.03225286,2810.3,2808.5,5.82823]
[1769374797394,4.03222286,2810.7,2808.9,1.32905261]
[1769374800092,4.03223286,2810.6,2809.0,5.65]
[1769374800393,4.03223286,2810.6,2809.1,3.824]
[1769374800590,3.85413286,2810.4,2809.2,3.824]
[1769374800790,3.85413286,2810.4,2809.3,2.683]
[1769374801489,4.03227286,2810.0,2808.4,3.561]
[1769374801696,4.03227286,2810.0,2808.7,2.683]
[1769374802194,3.85413286,2809.5,2808.1,3.561]
[1769374802394,3.85413286,2809.5,2808.2,2.089]
[1769374802593,3.85413286,2809.5,2807.9,1.32905261]
[1769374802594,3.85413286,2809.5,2808.0,3.824]
[1769374802795,3.85413286,2809.5,2808.1,6.245]
[1769374803099,3.85413286,2809.5,2808.2,2.685]
[1769374804599,3.85413286,2809.5,2807.7,0.00284362]
[1769374804797,3.85413286,2809.5,2807.8,5.827]
[1769374805095,3.85413286,2809.5,2807.7,7.8523466]
[1769374805398,3.85683538,2809.3,2807.8,5.827]
[1769374805794,3.85683538,2809.1,2807.7,0.00284362]
[1769374805987,4.03504538,2808.9,2807.7,0.00284362]
[1769374806299,3.85683538,2808.7,2807.7,0.00284362]
[1769374806493,3.85683538,2808.7,2806.8,0.17834]
[1769374806692,3.85683538,2808.4,2806.9,6.246]
[1769374807602,3.85683538,2808.8,2806.9,6.246]
[1769374807793,3.85683538,2808.6,2807.0,5.651]
[1769374808195,3.85683538,2809.0,2807.0,5.651]
[1769374808392,3.85683538,2808.8,2807.1,5.651]
[1769374808698,4.03505538,2808.8,2807.1,5.651]
[1769374808997,3.85683538,2808.8,2807.1,5.651]
[1769374809302,0.00339972,2809.1,2807.1,6.97981236]
[1769374809493,0.00339972,2809.1,2807.7,0.17828]
[1769374809898,0.00339972,2809.1,2807.8,5.651]
[1769374810193,3.85683538,2809.7,2807.8,5.82928]
[1769374810397,3.85683538,2810.2,2807.9,0.17827]
[1769374810598,3.99351879,2810.1,2807.9,0.17827]
[1769374810895,4.00300734,2810.0,2808.0,5.651]
[1769374811100,3.85683538,2809.9,2808.0,5.651]
[1769374811401,3.85974496,2809.9,2808.0,5.651]
[1769374811600,0.00290958,2809.9,2808.1,0.17825]
[1769374811799,0.00290958,2809.9,2808.0,5.651]
[1769374812197,0.00290958,2809.9,2808.3,1.32881236]
[1769374812401,3.85683538,2810.8,2808.8,0.17821]
[1769374812602,3.85683538,2810.8,2808.9,2.685]
[1769374813397,3.85683538,2810.8,2808.9,2.68840668]
[1769374813398,3.86125676,2810.8,2808.9,2.68840668]
[1769374813599,3.86125676,2810.8,2808.9,0.00340668]
[1769374813900,3.86125676,2810.8,2809.0,5.651]
[1769374814096,3.86125676,2810.8,2809.1,2.089]
[1769374814306,3.85683538,2810.6,2809.2,2.089]
[1769374814806,3.85683538,2810.6,2809.3,2.089]
[1769374822705,3.85644093,2810.2,2808.9,0.00340668]
[1769374822902,3.85644093,2810.2,2809.0,2.089]
[1769374823414,4.03456093,2810.2,2808.9,0.00340668]
[1769374823613,3.85644093,2810.0,2808.9,0.00340668]
[1769374824015,3.85644093,2809.8,2808.9,0.00340668]
[1769374824308,3.85644093,2809.5,2807.5,0.17829]
[1769374824511,3.85644093,2809.5,2808.0,5.65]
[1769374825011,2.12490925,2810.1,2807.5,4.00229]
[1769374825012,3.85644093,2809.3,2807.5,0.17829]
[1769374825307,3.85644093,2809.3,2808.0,2.089]
[1769374826314,4.24972078,2810.3,2808.0,2.089]
[1769374826315,0.00442138,2810.8,2809.6,0.17816]
[1769374826512,3.85644093,2811.2,2809.7,5.65]
[1769374827408,3.85962596,2811.2,2809.7,5.65]
[1769374830118,3.85962596,2811.2,2809.2,1.32881236]
[1769374830421,3.85962596,2811.2,2809.3,5.649]
[1769374830618,3.85962596,2811.2,2809.3,5.82718]
[1769374830813,3.85962596,2811.2,2809.3,6.11592354]
[1769374831816,3.85962596,2811.2,2809.4,0.17817]
[1769374832017,0.00318503,2811.2,2809.3,5.93774354]
[1769374832215,0.00318503,2811.2,2809.5,0.17816]
[1769374832524,0.00318503,2811.2,2809.7,0.17815]
[1769374833612,0.00318503,2811.2,2809.8,5.649]
[1769374833813,3.85514081,2812.6,2810.3,0.17811]
[1769374834421,3.85514081,2812.6,2810.5,0.1781]
[1769374834817,3.85828658,2812.6,2810.5,0.18209188]
[1769374835720,3.85828658,2812.6,2810.7,0.17809]
[1769374835920,3.85828658,2812.6,2810.8,2.088]
[1769374836614,3.85828658,2812.6,2810.7,0.17809]
[1769374836811,3.85828658,2812.6,2810.9,2.088]
[1769374837919,0.00314577,2812.6,2811.1,0.17806]
[1769374838119,3.85514081,2813.1,2811.2,1.50687236]
[1769374838314,3.85514081,2813.1,2811.2,0.17806]
[1769374838714,3.85514081,2813.8,2811.2,1.32881236]
[1769374839129,3.85949207,2813.8,2811.6,0.17803]
[1769374839421,3.85949207,2813.8,2811.7,0.17803]
[1769374840320,3.85949207,2813.8,2811.8,5.647]
[1769374841117,3.85949207,2813.8,2811.8,7.15383236]
[1769374841317,3.85949207,2813.8,2811.9,0.17801]
[1769374841518,3.85949207,2813.8,2812.0,5.646]
[1769374841914,3.85949207,2813.8,2811.9,0.17801]
[1769374842121,3.85949207,2813.8,2812.0,5.646]
[1769374842321,3.85949207,2813.8,2811.9,0.17801]
[1769374842621,4.03739207,2813.8,2812.0,5.646]
[1769374842927,4.03739207,2813.8,2811.5,2.81668888]
[1769374843128,4.03739207,2813.8,2811.6,5.646]
[1769374843725,0.17781,2815.1,2813.3,1.32881236]
[1769374843924,3.85514081,2815.0,2813.2,2.087]
[1769374844235,3.85514081,2815.0,2813.3,0.17793]
[1769374844522,3.85514081,2815.3,2813.2,2.087]
[1769374844726,3.85828903,2815.3,2813.2,2.09115571]
[1769374844929,3.85828903,2815.3,2813.2,2.26908571]
[1769374846020,3.85828903,2815.3,2813.3,0.17793]
[1769374846628,3.85514081,2815.1,2813.2,2.09115571]
[1769374847025,3.85514081,2814.9,2813.2,2.09115571]
[1769374847723,4.03297081,2814.9,2813.2,2.09115571]
[1769374853438,3.85514081,2814.9,2813.2,2.09115571]
[1769374853825,3.85514081,2814.9,2813.4,0.17792]
[1769374854026,0.00314822,2815.3,2813.7,0.1779]
[1769374854334,0.00314822,2815.3,2813.8,0.17789]
[1769374854529,4.03288081,2816.4,2814.1,0.17787]
[1769374854737,3.85514081,2816.2,2814.2,5.643]
[1769374855232,3.85514081,2816.2,2814.2,5.82087]
[1769374855433,3.85934907,2816.2,2814.2,5.82087]
[1769374855642,3.85934907,2816.2,2814.3,0.17786]
[1769374856134,3.85934907,2816.2,2814.6,0.17784]
[1769374856832,31.87290588,2817.8,2814.4,0.3562]
[1769374857139,3.85514081,2818.0,2815.6,0.17778]
[1769374857434,3.85514081,2818.0,2815.7,5.642]
[1769374857635,3.85514081,2818.8,2816.0,1.32881236]
[1769374857844,3.85514081,2819.6,2817.4,1.32881236]
[1769374858032,3.85514081,2819.6,2817.5,5.641]
[1769374858341,3.85514081,2820.9,2818.1,1.32881236]
[1769374858541,4.03260081,2820.7,2818.1,2.333]
[1769374858742,3.85514081,2820.5,2818.1,2.333]
[1769374859035,4.03656414,2820.5,2818.1,0.00371276]
[1769374859227,4.03264081,2820.2,2818.1,0.00371276]
[1769374859431,0.00395333,2820.5,2818.1,0.00371276]
[1769374859432,0.17752,2819.8,2818.1,0.00371276]
[1769374859631,4.03268081,2819.6,2817.5,3.556]
[1769374860039,3.85514081,2819.4,2817.5,3.556]
[1769374860339,3.85514081,2818.9,2816.0,2.085]
[1769374860633,3.85514081,2819.2,2816.1,2.085]
[1769374860834,4.03271081,2819.0,2816.1,5.64]
[1769374861143,3.85514081,2819.0,2816.8,0.1777]
[1769374862538,3.85514081,2819.0,2816.1,5.64]
[1769374863238,3.85514081,2819.0,2816.5,1.32881236]
[1769374863443,3.85514081,2819.0,2816.9,0.1777]
[1769374863639,3.85514081,2819.0,2817.0,2.688]
[1769374863945,3.84832312,2819.9,2817.2,0.17768]
[1769374864146,4.02583312,2819.9,2817.2,0.17768]
[1769374865038,2.084,2819.8,2817.2,0.17768]
[1769374865342,3.84832312,2819.7,2817.2,0.17768]
[1769374865541,3.84832312,2819.7,2817.2,1.58558028]
[1769374865939,3.84832312,2819.7,2817.8,1.40790028]
[1769374866243,3.84832312,2819.7,2817.3,1.40790028]
[1769374867745,1.40790028,2820.2,2817.8,1.40790028]
[1769374867746,3.84832312,2820.2,2817.8,1.40790028]
[1769374867940,3.84832312,2819.9,2817.8,1.40790028]
[1769374868147,3.84832312,2819.6,2817.7,2.083]
[1769374868447,0.17753,2819.7,2816.4,0.17773]
[1769374868448,3.84832312,2818.7,2816.4,0.17773]
[1769374868643,3.84832312,2818.5,2816.4,0.17773]
[1769374868842,4.02586312,2819.5,2817.6,1.40790028]
[1769374869046,4.02586312,2819.5,2817.6,3.49090028]
[1769374869247,4.02586312,2819.5,2817.6,2.083]
[1769374869642,3.84832312,2819.1,2816.4,1.40790028]
[1769374869849,3.84832312,2819.0,2816.7,0.17771]
[1769374870148,3.84832312,2819.0,2816.9,1.40790028]
[1769374871541,3.84832312,2819.0,2816.7,0.17771]
[1769374871746,4.02590312,2818.8,2816.5,2.083]
[1769374872049,3.84832312,2818.6,2816.5,2.083]
[1769374872242,3.84832312,2818.3,2816.0,0.18222413]
[1769374872448,3.84832312,2818.3,2816.0,2.26522413]
[1769374873642,3.84832312,2818.1,2816.0,2.26522413]
[1769374873854,3.84832312,2818.0,2816.0,2.08747413]
[1769374874045,2.083,2818.1,2816.0,0.00447413]
[1769374874046,3.84832312,2817.3,2816.0,0.00447413]
[1769374874739,4.02600312,2817.3,2815.0,1.40790028]
[1769374875545,4.02600312,2817.3,2815.0,1.58851161]
[1769374875750,0.1777,2816.9,2815.0,0.00279133]
[1769374875951,3.84873965,2816.8,2815.0,0.00279133]
[1769374876952,4.02644965,2816.8,2815.0,0.00279133]
[1769374877262,3.84873965,2816.8,2815.0,0.00279133]
[1769374877550,0.00298332,2816.9,2814.1,2.083]
[1769374877551,0.17774,2816.3,2814.1,2.083]
[1769374877750,3.84873965,2816.2,2814.1,2.083]
[1769374877951,3.84873965,2816.2,2813.8,2.26089]
[1769374878453,4.02647965,2816.2,2813.8,2.26455478]
[1769374878855,4.02647965,2816.2,2813.8,0.00366478]
[1769374878856,3.84873965,2815.7,2813.8,0.00366478]
[1769374880847,3.84873965,2815.5,2813.8,0.00366478]
[1769374881156,4.02652965,2815.5,2813.8,0.00366478]
[1769374881343,4.02653965,2815.3,2813.8,0.00366478]
[1769374881547,3.84873965,2815.1,2813.8,0.00366478]
[1769374883048,3.84873965,2815.7,2813.8,0.00366478]
[1769374884153,3.84873965,2815.7,2813.8,0.18155478]
[1769374884455,3.84873965,2815.7,2814.0,1.40790028]
[1769374884756,3.84873965,2816.6,2815.0,1.40790028]
[1769374885055,3.84873965,2816.6,2815.1,2.084]
[1769374888558,3.84873965,2816.6,2815.2,5.783]
[1769374889653,3.84873965,2816.6,2815.1,2.438]
[1769374890256,0.00298332,2816.9,2815.6,0.17778]
[1769374890552,3.84873965,2818.3,2816.5,1.40790028]
[1769374890753,3.84873965,2818.3,2816.6,5.637]
[1769374890955,3.84873965,2818.3,2816.8,0.1777]
[1769374891255,3.84873965,2818.7,2816.9,2.172]
[1769374891458,3.85215345,2818.7,2816.9,5.72776545]
[1769374891659,3.85215345,2818.7,2816.9,0.00276545]
[1769374892954,3.84873965,2818.5,2816.9,0.00276545]
[1769374893659,4.02633965,2818.5,2816.9,0.00276545]
[1769374893856,3.84727742,2818.3,2816.2,3.553]
[1769374894057,3.84727742,2818.3,2816.3,2.084]
[1769374894962,3.84727742,2818.3,2816.3,2.08648935]
[1769374895463,0.17762,2818.1,2816.3,2.08648935]
[1769374895664,3.84727742,2818.0,2816.3,2.08648935]
[1769374896861,3.84727742,2818.6,2816.5,1.40790028]
[1769374897258,3.84727742,2818.6,2816.5,0.17772]
[1769374897765,3.84727742,2818.4,2816.3,0.00248935]
[1769374897964,3.84727742,2818.4,2816.4,2.083]
[1769374898160,3.84727742,2818.4,2816.7,1.58561028]
[1769374898563,4.02488742,2818.4,2816.3,0.00248935]
[1769374898762,0.0034138,2818.7,2816.3,0.00248935]
[1769374898763,3.84727742,2817.9,2816.3,0.00248935]
[1769374900565,3.84727742,2817.6,2816.3,0.00248935]
[1769374905373,3.84727742,2818.1,2816.3,0.00248935]
[1769374905666,3.84727742,2818.1,2816.5,0.17772]
[1769374905966,3.84727742,2818.1,2816.5,5.81272]
[1769374906165,3.84727742,2818.6,2816.7,1.40790028]
[1769374906362,3.84727742,2818.6,2816.9,0.1777]
[1769374907764,3.84727742,2818.2,2816.3,0.18022935]
[1769374907964,3.84727742,2818.2,2816.3,2.26322935]
[1769374908263,3.84727742,2818.2,2816.3,0.18022935]
[1769374908460,3.84727742,2818.0,2816.3,0.00248935]
[1769374908859,4.02490742,2818.0,2816.3,0.00248935]
[1769374909868,3.84727742,2817.7,2816.3,0.00248935]
[1769374912472,3.84727742,2818.3,2816.4,0.17773]
[1769374913763,3.84727742,2818.3,2816.5,2.083]
[1769374914083,3.84727742,2818.3,2816.4,0.17773]
[1769374914373,4.02489742,2818.1,2816.3,0.00248935]
[1769374915169,3.84727742,2817.9,2816.3,0.00248935]
[1769374915578,3.84727742,2819.0,2817.5,1.40790028]
[1769374915880,3.84727742,2819.0,2817.5,3.49090028]
[1769374916268,3.85069122,2818.7,2816.9,5.807]
[1769374916575,3.85069122,2818.7,2817.0,1.40790028]
[1769374916969,3.85069122,2818.7,2817.1,6.053]
[1769374919575,3.85069122,2818.7,2817.1,2.179]
[1769374919777,3.85069122,2818.7,2817.1,5.73]
[1769374920171,3.85069122,2818.7,2816.7,0.17771]
[1769374920371,3.85069122,2818.7,2816.8,5.634]
[1769374922182,2.09753446,2819.2,2817.2,0.17768]
[1769374922183,3.84727742,2819.2,2817.2,0.17768]
[1769374922875,3.84727742,2819.2,2817.3,0.17767]
[1769374923076,3.85089994,2819.2,2817.4,0.17767]
[1769374923382,0.00362252,2819.2,2817.5,3.556]
[1769374923676,0.00362252,2819.2,2817.5,11.28602288]
[1769374924183,0.00362252,2819.2,2817.5,3.556]
[1769374924682,0.00021584,2819.2,2818.2,0.17762]
[1769374924878,0.00021584,2819.2,2818.3,6.205]
[1769374925775,0.00021584,2819.2,2818.3,0.00320801]
[1769374925977,0.00021584,2819.2,2818.4,5.636]
[1769374926782,0.00021584,2819.2,2818.3,0.00320801]
[1769374927095,0.00021584,2819.2,2818.4,5.791]
[1769374927581,0.00021584,2819.2,2818.3,0.00320801]
[1769374927785,0.00021584,2819.2,2818.3,2.26920801]
[1769374927983,3.84650129,2819.2,2818.3,0.00320801]
[1769374930286,0.00021584,2819.2,2818.3,0.00320801]
[1769374931193,0.00021584,2819.2,2818.4,2.082]
[1769374931490,0.00021584,2819.2,2818.4,5.632]
[1769374932785,0.00021584,2819.2,2818.3,0.00320801]
[1769374933883,0.00021584,2819.2,2817.6,3.55]
[1769374934083,3.84650129,2819.2,2817.6,5.632]
[1769374934290,3.84650129,2819.2,2817.5,0.17766]
[1769374934491,3.84650129,2819.2,2817.7,2.082]
[1769374934884,3.84650129,2819.2,2817.7,2.08586191]
[1769374935187,0.00021584,2819.2,2817.7,2.08586191]
[1769374935577,0.00021584,2819.2,2818.0,0.17763]
[1769374936691,0.00021584,2819.2,2818.2,0.17761]
[1769374936888,0.00021584,2819.2,2817.8,3.556]
[1769374937084,0.00021584,2819.2,2818.6,0.17759]
[1769374937284,3.84761821,2820.3,2818.7,2.644]
[1769374937485,3.84761821,2820.3,2818.8,3.55]
[1769374938195,3.85025867,2820.3,2818.8,3.55]
[1769374938391,0.00264046,2820.3,2818.8,3.55]
[1769374938990,0.00264046,2820.3,2819.0,0.17756]
[1769374939192,0.00264046,2820.3,2819.3,0.17754]
[1769374939390,0.00264046,2820.3,2819.4,6.192]
[1769374940600,0.00264046,2820.3,2818.9,0.17757]
[1769374940901,3.85025867,2820.3,2818.4,0.2853813]
[1769374941093,3.85025867,2820.3,2818.5,3.549]
[1769374941289,3.85025867,2820.3,2818.6,2.082]
[1769374941794,4.02774867,2820.3,2818.6,2.081]
[1769374943091,4.02774867,2820.3,2817.9,0.17763]
[1769374943290,4.02774867,2820.3,2818.0,5.63]
[1769374943895,3.84761821,2819.8,2817.7,0.00386191]
[1769374944093,3.84761821,2819.8,2817.8,5.63]
[1769374945098,3.84761821,2819.8,2817.7,0.00386191]
[1769374945295,3.84761821,2819.8,2817.8,5.63]
[1769374945496,2.10017492,2820.3,2817.8,5.63]
[1769374945497,3.84761821,2819.6,2817.8,5.63]
[1769374945702,3.84761821,2819.4,2817.7,2.08486191]
[1769374946000,3.84761821,2819.4,2816.4,24.846]
[1769374946001,4.02522821,2818.3,2816.0,3.549]
[1769374946298,3.84761821,2818.1,2816.1,2.081]
[1769374946905,3.84761821,2817.9,2816.1,2.0837733]
[1769374947399,3.84761821,2817.9,2816.1,0.0027733]
[1769374948600,3.84761821,2817.7,2816.1,0.0027733]
[1769374950201,0.00391898,2818.1,2816.1,0.0027733]
[1769374950603,0.00391898,2818.1,2816.1,0.1805233]
[1769374951306,3.85153719,2818.1,2816.1,0.1805233]
[1769374951605,3.85153719,2818.1,2816.1,0.0027733]
[1769374951806,3.85153719,2818.1,2816.2,5.632]
[1769374952207,4.02916719,2818.1,2816.2,5.632]
[1769374955208,0.17763,2818.0,2816.2,5.632]
[1769374955509,3.84905967,2817.9,2816.2,5.632]
[1769374959508,0.00391898,2818.1,2816.2,5.632]
[1769374959810,0.00391898,2818.1,2816.4,0.17773]
[1769374961007,3.85297865,2818.1,2816.5,5.634]
[1769374962213,0.00391898,2818.1,2816.1,0.0027733]
[1769374962418,3.85297865,2818.1,2816.2,5.634]
[1769374962918,0.00391898,2818.1,2816.7,0.17771]
[1769374963119,0.00391898,2818.1,2817.0,0.17769]
[1769374963617,3.84905967,2819.1,2817.2,0.17768]
[1769374963820,3.84905967,2819.1,2817.3,2.083]
[1769374964016,3.84905967,2819.1,2817.4,3.551]
[1769374964517,3.85235741,2819.1,2817.4,3.551]
[1769374966020,3.85235741,2819.1,2817.5,2.082]
[1769374968623,3.85235741,2819.1,2817.6,2.082]
[1769374969525,3.85235741,2819.1,2817.0,0.17769]
[1769374969725,3.85235741,2819.1,2817.1,5.633]
[1769374970426,4.02664967,2818.6,2816.7,3.55]
[1769374970726,4.02666967,2818.4,2816.7,5.632]
[1769374970928,3.84905967,2818.2,2816.1,0.0027733]
[1769374971132,3.84905967,2818.2,2816.2,5.632]
[1769374971523,3.84905967,2818.0,2816.2,5.632]
[1769374972024,3.84905967,2817.7,2816.1,0.0027733]
[1769374972330,3.84905967,2817.7,2816.1,2.0847733]
[1769374972923,3.84905967,2818.2,2816.2,0.17774]
[1769374973229,3.84905967,2818.2,2816.4,0.17773]
[1769374973532,3.84905967,2818.7,2817.0,0.17769]
[1769374973729,3.84905967,2818.7,2817.1,2.082]
[1769374973924,3.84905967,2818.7,2817.2,3.551]
[1769374974624,3.84905967,2818.7,2817.3,5.633]
[1769374974834,3.84905967,2818.7,2816.4,7.73002288]
[1769374975024,3.84905967,2818.7,2816.5,5.633]
[1769374975527,3.84905967,2818.5,2816.3,0.17773]
[1769374975833,3.84905967,2818.1,2816.4,5.633]
[1769374977525,3.84905967,2818.1,2816.1,0.1805233]
[1769374977726,3.84905967,2818.1,2816.2,5.633]
[1769374981131,3.84905967,2818.1,2816.1,0.0027733]
[1769374981340,3.84905967,2817.9,2816.1,0.0027733]
[1769374981633,4.02670967,2817.7,2816.1,0.0027733]
[1769374981930,3.97548748,2817.8,2815.1,3.551]
[1769374981931,0.17769,2817.0,2815.1,3.551]
[1769374982140,3.84905967,2816.9,2815.2,2.082]
[1769374982840,4.02675967,2816.9,2815.2,2.082]
[1769374983133,3.85044842,2816.7,2815.2,0.00392105]
[1769374983432,3.84960322,2816.5,2815.2,0.00392105]
[1769374984033,4.02733322,2816.5,2815.2,0.00392105]
[1769374984234,4.0253827,2816.2,2814.1,2.083]
[1769374985238,3.8476427,2816.2,2814.1,0.00417983]
[1769374985542,3.85044842,2815.4,2814.1,0.00417983]
[1769374985840,3.85044842,2815.2,2814.1,0.00417983]
[1769374986047,4.02825842,2815.2,2813.1,2.083]
[1769374986934,4.02826842,2815.0,2813.1,0.00444988]
[1769374987440,3.85044842,2814.8,2813.1,0.00444988]